fUSD/lending_fUSD_20250301
["ID","MTS","AMOUNT","RATE_DAILY","PERIOD"]
[354929008,1740828639711,-1161.33140907,0.00015,2]
[354929010,1740828639723,-6308.54690269,0.00015,2]
[354929026,1740828639874,-441.129,0.00015,2]
[354929028,1740828639885,-30296.0759532,0.00015,2]
[354929034,1740828639935,-42478.63691932,0.00015,2]
[354929037,1740828639948,-7239.86005969,0.00015,2]
[354929042,1740828639991,-10757.80396409,0.00015,2]
[354929060,1740828640156,-1787.55805162,0.00015,2]
[354929063,1740828640168,-1504.02127916,0.00015,2]
[354929483,1740828644193,-1000.0,0.000149,2]
[354929485,1740828644203,-1920.47,0.00015,2]
[354929489,1740828644223,-119609.92793743,0.00015,2]
[354929491,1740828644234,-20042.725,0.00015,2]
[354929494,1740828644246,-53088.000001,0.00015,2]
[354929697,1740828645731,-7637.41497711,0.00015,2]
[354929699,1740828645743,-954.59070619,0.00015,2]
[354929702,1740828645755,-1382.44898735,0.00015,2]
[354929704,1740828645767,-9329.48992964,0.00015,2]
[354929706,1740828645778,-741.66382012,0.00015,2]
[354929710,1740828645796,-423.88549128,0.00015,2]
[354929718,1740828645857,-435.489995,0.00015,2]
[354929720,1740828645868,-336.61,0.00015,2]
[354929723,1740828645879,-945.36764659,0.00015,2]
[354929732,1740828645950,-2898.28452122,0.00015,2]
[354929735,1740828645961,-8481.63125903,0.00015,2]
[354929737,1740828645972,-551.20687481,0.00015,2]
[354929739,1740828645983,-387.96181806,0.00015,2]
[354929753,1740828646098,-22545.5625134,0.00015,2]
[354929756,1740828646111,-1447.60063062,0.00015,2]
[354929758,1740828646122,-38235.07818096,0.00015,2]
[354929762,1740828646140,-3572.97919354,0.00015,2]
[354930500,1740829808644,392.33474166,0.00014553,2]
[354930502,1740829832019,-200.0,0.0001488,2]
[354930503,1740829832029,-150.0,0.00014885,2]
[354930504,1740829832040,-150.0,0.00014899,2]
[354930505,1740829832050,-166.07096927,0.000149,2]
[354930506,1740829832062,-1000.0,0.000149,2]
[354930507,1740829832072,-1482.49259408,0.000149,2]
[354930508,1740829832082,-134.72997392,0.00014973,2]
[354930509,1740829832095,-365.27002608,0.00014973,2]
[354930510,1740829832106,-30.12997254,0.00014988,2]
[354930511,1740829832126,-10006.87002746,0.00014988,2]
[354930512,1740829832136,-7479.3138187,0.00014997,2]
[354930513,1740829832146,-1000.0,0.00014999,2]
[354930514,1740829832157,-211.9710912,0.00014999,2]
[354930515,1740829832167,-719.0,0.00015,2]
[354930516,1740829832177,-4162.21074364,0.00015,2]
[354930517,1740829832189,-6099.9999999,0.00015,2]
[354930518,1740829832201,-4880.0,0.00015,2]
[354930519,1740829832214,-2950.70297992,0.00015,2]
[354930520,1740829834834,-56899.01541625,0.00015,2]
[354930521,1740829834847,-1178.92560125,0.00015,2]
[354930522,1740829834859,-2073.52890149,0.00015,2]
[354930653,1740829837830,-642.0,0.00015,2]
[354930655,1740829837841,-949.45725268,0.00015,2]
[354930663,1740829837936,-516.25543013,0.00015,2]
[354930665,1740829837948,-1490.05614973,0.00015,2]
[354930666,1740829837990,-10075.94235614,0.00015,2]
[354930667,1740829838043,-417.45361277,0.00015,2]
[354930859,1740829840071,-947.72946,0.00015,2]
[354930864,1740829840109,-16235.25070065,0.00015,2]
[354930866,1740829840121,-768.39489606,0.00015,2]
[354930872,1740829840166,-127738.94475801,0.00015,2]
[354931336,1740829844581,-580.0,0.00015,2]
[354931338,1740829844590,-2913.47048148,0.00015,2]
[354931340,1740829844602,-550.0,0.00015,2]
[354931446,1740829845895,-2801.67852776,0.00015,2]
[354931458,1740829846002,-287266.57502775,0.00015,2]
[354931475,1740829846160,-4255.14718727,0.00015,2]
[354931642,1740829881055,199.62487,0.0001485,2]
[354931643,1740829924963,250.0,0.00013,2]
[354931644,1740830006093,200.0,0.00012896,2]
[354931645,1740830309735,1364.841,0.000147,2]
[354931646,1740830309764,199.893,0.000147,2]
[354931647,1740830329287,979.17,0.00014758,2]
[354931648,1740830422292,161.04,0.00024968,120]
[354931649,1740830630418,166.35405,0.0001485,2]
[354931656,1740830963772,-300.0,0.00014899,2]
[354931657,1740830963795,-150.0,0.00014899,2]
[354931658,1740830963816,-150.0,0.00014899,2]
[354931659,1740830963837,-5927.3257,0.000149,2]
[354931660,1740830963858,-743.4943,0.000149,2]
[354931661,1740830963880,-2729.18,0.000149,2]
[354931662,1740830964537,-2884.74323289,0.000149,2]
[354931663,1740830964560,-1252.00812861,0.000149,2]
[354931664,1740830964580,-500.0,0.00014925,2]
[354931665,1740830964602,-500.0,0.00014925,2]
[354931666,1740830964622,-500.0,0.00014925,2]
[354931667,1740830964643,-500.0,0.00014925,2]
[354931668,1740830964664,-500.0,0.00014925,2]
[354931669,1740830964685,-466.1413,0.00014925,2]
[354931670,1740830964709,-2897.1073385,0.00015,2]
[354931671,1740830965016,-10000.0,0.00015,2]
[354931672,1740830965451,-10000.0,0.00015,2]
[354931673,1740830965862,-10000.0,0.00015,2]
[354931674,1740830966171,-10000.0,0.00015,2]
[354931675,1740830968816,-10000.0,0.00015,2]
[354931676,1740830969497,-10000.0,0.00015,2]
[354931677,1740830969879,-10000.0,0.00015,2]
[354931678,1740830970414,-10000.0,0.00015,2]
[354931679,1740830970767,-10000.0,0.00015,2]
[354931680,1740830971253,-10000.0,0.00015,2]
[354931681,1740830971527,-10000.0,0.00015,2]
[354931682,1740830971881,-10000.0,0.00015,2]
[354931683,1740830972818,-10000.0,0.00015,2]
[354931684,1740830972873,-10000.0,0.00015,2]
[354931685,1740830973428,-10000.0,0.00015,2]
[354931686,1740830973819,-163.39501262,0.000149,2]
[354931687,1740830973845,-9836.60498738,0.00015,2]
[354931688,1740830974156,-10000.0,0.00015,2]
[354931689,1740830974590,-10000.0,0.00015,2]
[354931690,1740830975254,-10000.0,0.00015,2]
[354931691,1740830975712,-10000.0,0.00015,2]
[354931692,1740830976037,-10000.0,0.00015,2]
[354931693,1740830976447,-10000.0,0.00015,2]
[354931694,1740830977058,-10000.0,0.00015,2]
[354931695,1740830977509,-10000.0,0.00015,2]
[354931696,1740830977971,-10000.0,0.00015,2]
[354931697,1740830978451,-10000.0,0.00015,2]
[354931698,1740830978789,-10000.0,0.00015,2]
[354931699,1740830979232,-10000.0,0.00015,2]
[354931700,1740830979675,-10000.0,0.00015,2]
[354931701,1740830980046,-10000.0,0.00015,2]
[354931702,1740830980520,-10000.0,0.00015,2]
[354931703,1740830980960,-10000.0,0.00015,2]
[354931704,1740830981408,-10000.0,0.00015,2]
[354931705,1740830981691,-10000.0,0.00015,2]
[354931706,1740830982057,-10000.0,0.00015,2]
[354931707,1740830982503,-10000.0,0.00015,2]
[354931708,1740831002747,-10000.0,0.00015,2]
[354931709,1740831003119,-10000.0,0.00015,2]
[354931710,1740831003554,-10000.0,0.00015,2]
[354931711,1740831004375,-10000.0,0.00015,2]
[354931712,1740831004593,-10000.0,0.00015,2]
[354931713,1740831004720,-10000.0,0.00015,2]
[354931714,1740831005363,-10000.0,0.00015,2]
[354931715,1740831005696,-10000.0,0.00015,2]
[354931716,1740831006003,-10000.0,0.00015,2]
[354931717,1740831006428,-10000.0,0.00015,2]
[354931718,1740831006709,-10000.0,0.00015,2]
[354931719,1740831007076,-10000.0,0.00015,2]
[354931720,1740831007535,-10000.0,0.00015,2]
[354931721,1740831008359,-10000.0,0.00015,2]
[354931722,1740831020428,-10000.0,0.00015,2]
[354931724,1740831032093,-319.73,0.00015,2]
[354931725,1740831032106,-4415.5111,0.00015,2]
[354931726,1740831032119,-668.3211698,0.00015,2]
[354931734,1740831032609,-19022.4742324,0.00015,2]
[354931736,1740831032621,-137687.68441859,0.00015,2]
[354931738,1740831032631,-300.0,0.00015,2]
[354931740,1740831032641,-166.35406,0.00015,2]
[354931742,1740831032651,-150.0,0.00015021,2]
[354931744,1740831032660,-450.0,0.00015021,2]
[354931746,1740831032670,-1241.3157277,0.00015031,2]
[354931748,1740831032680,-504.0,0.00015041,2]
[354931750,1740831032690,-2379.2642917,0.00015165,2]
[354931752,1740831032699,-500.0,0.00015836,2]
[354931754,1740831032709,-183.23,0.00016013,2]
[354931756,1740831032718,-5613.92323281,0.00016344,2]
[354931758,1740831032728,-1252.00812859,0.00016344,2]
[354931760,1740831032737,-450.0,0.00016389,2]
[354931762,1740831032747,-150.0,0.00016389,2]
[354931764,1740831032757,-150.0,0.000165,2]
[354931766,1740831032766,-450.0,0.000165,2]
[354931768,1740831032776,-319.69555039,0.00016562,2]
[354931770,1740831032785,-292.7010922,0.00016615,2]
[354931773,1740831032800,-175.57,0.00016632,2]
[354931775,1740831032810,-264.37,0.00016632,2]
[354931777,1740831032820,-463.85,0.00016633,2]
[354931779,1740831032830,-161.04,0.00016645,2]
[354931781,1740831032839,-2275.67,0.00016646,2]
[354931783,1740831032849,-500.0,0.00016661,2]
[354931785,1740831032860,-180.23,0.00016662,2]
[354931787,1740831032871,-723.77,0.00016662,2]
[354931789,1740831032883,-200.0,0.00016663,2]
[354931791,1740831032899,-658.6,0.0001668,2]
[354931793,1740831032911,-200.0,0.00016685,2]
[354931795,1740831032921,-23900.0,0.00016692,2]
[354931797,1740831032930,-929.56,0.00016698,2]
[354931799,1740831032941,-284.74,0.0001671,2]
[354931801,1740831032952,-250.0,0.00016735,2]
[354931803,1740831032962,-416.25,0.00016762,2]
[354931805,1740831032972,-150.0,0.00016822,2]
[354931807,1740831032982,-155.01,0.00016837,2]
[354931809,1740831032993,-474.56,0.00016844,2]
[354931812,1740831033003,-313.01,0.00016866,2]
[354931814,1740831033013,-1000.0,0.00016883,2]
[354931816,1740831033023,-1035.05,0.00016929,2]
[354931818,1740831033035,-150.0,0.00016966,7]
[354931820,1740831033046,-350.0,0.00017,2]
[354931822,1740831033056,-979.17,0.00017022,2]
[354931824,1740831033067,-153.35,0.00017144,2]
[354931826,1740831033078,-658.6,0.00017514,2]
[354931828,1740831033088,-5613.92323281,0.00017789,2]
[354931830,1740831033099,-1252.00812859,0.00017789,2]
[354931832,1740831033110,-1704.29447116,0.000181,2]
[354931834,1740831033120,-527.94836428,0.000182,2]
[354931836,1740831033131,-527.94836408,0.000182,2]
[354931838,1740831033141,-527.94836408,0.000182,2]
[354931840,1740831033153,-658.6,0.00018348,2]
[354931842,1740831033163,-219.32,0.000186,2]
[354931845,1740831033174,-1305.42393,0.000189,2]
[354931847,1740831033185,-527.94836408,0.000189,2]
[354931849,1740831033195,-1000.0,0.00018993,2]
[354931851,1740831033205,-1112.0,0.00018999,2]
[354931853,1740831033215,-494.01817885,0.00019,2]
[354931855,1740831033225,-400.0,0.00019,2]
[354931857,1740831033239,-658.6,0.00019182,2]
[354931859,1740831033250,-5613.92323281,0.00019233,2]
[354931861,1740831033260,-1252.00812859,0.00019233,2]
[354931863,1740831033271,-979.17,0.00019286,2]
[354931865,1740831033282,-2908.0,0.000193,2]
[354931867,1740831033292,-161.04,0.0001942,2]
[354931869,1740831033303,-935.40293874,0.000195,2]
[354931871,1740831033319,-527.94836408,0.000199,2]
[354931873,1740831033331,-298.93388913,0.0002,2]
[354931875,1740831033341,-10000.0,0.0002,2]
[354931878,1740831033352,-1471.59761886,0.0002,2]
[354931880,1740831033363,-4270.91389331,0.0002,2]
[354931882,1740831033374,-7500.0,0.0002,2]
[354931884,1740831033385,-3840.95070217,0.0002,2]
[354931886,1740831033395,-45822.40351321,0.0002,2]
[354931888,1740831033406,-3950.0,0.0002,2]
[354931890,1740831033417,-1242.26979358,0.0002,2]
[354931892,1740831033427,-11752.98234923,0.0002,2]
[354931894,1740831033437,-2149.60193349,0.0002,4]
[354931896,1740831033448,-500.85301,0.0002,2]
[354931898,1740831033457,-166.35406,0.0002,2]
[354931900,1740831033468,-658.6,0.00020015,2]
[354931902,1740831033478,-11734.79412807,0.0002011,2]
[354931904,1740831033488,-41799.33079125,0.0002015,2]
[354931906,1740831033499,-1662.03553146,0.0002015,2]
[354931908,1740831033510,-1623.0,0.00020349,2]
[354931910,1740831033520,-784.0,0.00020349,2]
[354931912,1740831033531,-1268.0,0.00020349,2]
[354931914,1740831033542,-909.0,0.00020349,2]
[354931916,1740831033551,-540.0,0.00020349,2]
[354931918,1740831033562,-4038.0,0.00020349,2]
[354931920,1740831033573,-5613.92323281,0.00020678,2]
[354931923,1740831033583,-1252.00812859,0.00020678,2]
[354931924,1740831033593,-527.94836408,0.000209,2]
[354931927,1740831033603,-450.0,0.00021,2]
[354931929,1740831033613,-155.01,0.00021046,2]
[354931931,1740831033623,-1000.0,0.00021104,2]
[354931933,1740831033634,-979.17,0.0002155,2]
[354931935,1740831033644,-527.94836408,0.000219,3]
[354931937,1740831033655,-157.11,0.00021918,2]
[354931939,1740831033666,-825.319,0.00021999,2]
[354931941,1740831033677,-5613.92323281,0.00022122,2]
[354931943,1740831033688,-1252.00812859,0.00022122,2]
[354931945,1740831033698,-161.04,0.00022194,2]
[354931947,1740831033709,-160.040967,0.00022562,7]
[354931949,1740831033719,-1530.547263,0.00022562,7]
[354931951,1740831033729,-151.635151,0.00022562,7]
[354931953,1740831033740,-1530.547263,0.00022562,7]
[354931955,1740831033751,-3743.71,0.00022562,2]
[354931957,1740831033761,-2817.42,0.00022562,2]
[354931959,1740831033772,-999.99,0.00022562,2]
[354931961,1740831033782,-238.78,0.00022562,2]
[354931963,1740831033792,-641.71,0.00022562,2]
[354931965,1740831033803,-9999.99,0.00022562,2]
[354931968,1740831033813,-1462.17,0.00022562,2]
[354931971,1740831033837,-150.99,0.00022562,2]
[354931973,1740831033848,-9999.99,0.00022562,2]
[354931975,1740831033860,-2177.79,0.00022562,2]
[354931977,1740831033871,-1472.0,0.000228,2]
[354931980,1740831033882,-527.94836408,0.000229,3]
[354931982,1740831033893,-2000.0,0.00022964,4]
[354931984,1740831033904,-500.0,0.00023,2]
[354931986,1740831033916,-1000.0,0.00023214,2]
[354931988,1740831033928,-1268.0,0.00023349,2]
[354931990,1740831033939,-266.991,0.00023349,2]
[354931992,1740831033950,-4038.0,0.00023349,2]
[354931994,1740831033962,-151.0,0.00023368,7]
[354931996,1740831033972,-151.0,0.00023368,7]
[354931999,1740831033983,-161.38126,0.00023368,7]
[354932001,1740831033993,-193.225868,0.00023368,7]
[354932003,1740831034004,-154.321311,0.00023368,7]
[354932005,1740831034014,-151.0,0.00023368,7]
[354932007,1740831034024,-151.0,0.00023368,7]
[354932009,1740831034035,-152.31877,0.00023368,7]
[354932011,1740831034045,-157.116967,0.00023368,7]
[354932013,1740831034056,-285.442052,0.00023368,7]
[354932015,1740831034067,-416.25,0.00023467,2]
[354932017,1740831034078,-5613.92323281,0.00023567,2]
[354932018,1740831034089,-1252.00812859,0.00023567,2]
[354932019,1740831034099,-159.900294,0.00023567,7]
[354932020,1740831034110,-979.17,0.00023813,2]
[354932021,1740831034121,-203.73,0.00023836,2]
[354932022,1740831034132,-527.94836408,0.000239,3]
[354932023,1740831034142,-3128.18517763,0.00024,8]
[354932024,1740831034153,-151.0,0.00024174,7]
[354932025,1740831034164,-151.0,0.00024174,7]
[354932026,1740831034175,-1000.0,0.00024658,2]
[354932027,1740831034186,-527.94836408,0.000249,4]
[354932028,1740831034196,-500.0,0.00025,2]
[354932029,1740831034207,-597.53348159,0.00025,2]
[354932030,1740831034218,-500.0,0.00025,2]
[354932031,1740831034228,-522.91086672,0.00025,2]
[354932032,1740831034243,-8500.0,0.00025,2]
[354932033,1740831034254,-194.03,0.00025,2]
[354932034,1740831034265,-550.0,0.00025,2]
[354932035,1740831034278,-166.35406,0.00025,2]
[354932036,1740831034289,-11242.91566664,0.0002501,2]
[354932037,1740831034301,-523.0,0.00025011,2]
[354932038,1740831034314,-5613.92323281,0.00025011,2]
[354932039,1740831034332,-1252.00812859,0.00025011,2]
[354932040,1740831034343,-185.83,0.0002509,2]
[354932041,1740831034355,-3235.69720343,0.000251,2]
[354932042,1740831034366,-155.01,0.00025255,120]
[354932043,1740831034379,-1000.0,0.00025324,2]
[354932044,1740831034398,-527.94836408,0.000259,4]
[354932045,1740831034410,-979.17,0.00026077,2]
[354932046,1740831034423,-166.07096927,0.000263,2]
[354932048,1740831034434,-167.713,0.00026349,2]
[354932050,1740831034446,-172.131,0.00026349,2]
[354932052,1740831034458,-2306.40893953,0.000264,2]
[354932054,1740831034470,-5613.92323281,0.00026456,2]
[354932056,1740831034482,-1252.00812859,0.00026456,2]
[354932058,1740831034495,-572.0,0.000268,2]
[354932060,1740831034506,-527.94836408,0.000269,4]
[354932062,1740831034516,-600.0,0.00027,2]
[354932065,1740831034528,-1266.73238712,0.00027,8]
[354932067,1740831034539,-169.718971,0.0002736,3]
[354932069,1740831034549,-185.83,0.0002738,2]
[354932071,1740831034560,-185.83,0.0002738,2]
[354932073,1740831034570,-185.83,0.0002738,2]
[354932075,1740831034582,-185.83,0.0002738,2]
[354932077,1740831034592,-185.83,0.00027387,2]
[354932079,1740831034604,-185.83,0.00027387,2]
[354932081,1740831034616,-449501.98749261,0.0002739,7]
[354932083,1740831034627,-151.0,0.0002739,7]
[354932085,1740831034638,-151.0,0.0002739,7]
[354932087,1740831034649,-153.690154,0.0002739,7]
[354932089,1740831034659,-151.0,0.0002739,7]
[354932092,1740831034671,-151.0,0.0002739,7]
[354932094,1740831034682,-151.0,0.0002739,7]
[354932096,1740831034692,-1530.547263,0.0002739,7]
[354932098,1740831034702,-1530.547263,0.0002739,7]
[354932100,1740831034713,-599.02084718,0.00027396,2]
[354932102,1740831034723,-500.0,0.00027397,2]
[354932104,1740831034733,-500.0,0.00027397,2]
[354932106,1740831034744,-508.66607662,0.00027397,2]
[354932108,1740831034754,-513.8132067,0.00027397,2]
[354932110,1740831034765,-509.22999424,0.00027397,2]
[354932112,1740831034776,-505.77680475,0.00027397,2]
[354932114,1740831034786,-513.54261881,0.00027397,2]
[354932117,1740831034797,-505.42791578,0.00027397,2]
[354932119,1740831034807,-500.0,0.00027397,2]
[354932121,1740831034818,-500.0,0.00027397,2]
[354932123,1740831034829,-500.0,0.00027397,2]
[354932125,1740831034844,-500.0,0.00027397,2]
[354932127,1740831034855,-522.10444726,0.00027397,2]
[354932158,1740831035102,-500.0,0.00027397,2]
[354932160,1740831035112,-500.0,0.00027397,2]
[354932162,1740831035122,-500.0,0.00027397,2]
[354932164,1740831035133,-353.44158965,0.00027397,2]
[354932166,1740831035143,-504.60418618,0.00027397,2]
[354932168,1740831035153,-506.27658587,0.00027397,2]
[354932170,1740831035162,-500.0,0.00027397,2]
[354932172,1740831035173,-500.0,0.00027397,2]
[354932174,1740831035183,-500.0,0.00027397,2]
[354932176,1740831035192,-519.17862541,0.00027397,2]
[354932178,1740831035202,-500.0,0.00027397,2]
[354932179,1740831035212,-500.0,0.00027397,2]
[354932181,1740831035222,-300.0,0.00027397,2]
[354932183,1740831035233,-500.0,0.00027397,2]
[354932185,1740831035245,-494.85366123,0.00027397,2]
[354932187,1740831035255,-500.0,0.00027397,2]
[354932189,1740831035265,-500.0,0.00027397,2]
[354932191,1740831035275,-500.0,0.00027397,2]
[354932194,1740831035290,-500.0,0.00027397,2]
[354932195,1740831035300,-500.0,0.00027397,2]
[354932197,1740831035310,-175.76685458,0.00027397,2]
[354932199,1740831035320,-500.0,0.00027397,2]
[354932201,1740831035330,-152.91705,0.00027397,7]
[354932203,1740831035340,-500.0,0.00027397,2]
[354932205,1740831035349,-295.1945163,0.00027397,2]
[354932207,1740831035359,-500.0,0.00027397,2]
[354932209,1740831035369,-500.0,0.00027397,2]
[354932211,1740831035379,-500.0,0.00027397,2]
[354932213,1740831035388,-915.23,0.00027397,2]
[354932215,1740831035397,-500.0,0.00027397,2]
[354932217,1740831035407,-500.0,0.00027397,2]
[354932219,1740831035417,-500.0,0.00027397,2]
[354932221,1740831035426,-504.07806676,0.00027397,2]
[354932223,1740831035435,-303.57338685,0.00027397,2]
[354932225,1740831035445,-500.0,0.00027397,2]
[354932227,1740831035456,-500.0,0.00027397,2]
[354932229,1740831035466,-500.0,0.00027397,2]
[354932230,1740831035476,-1010.63,0.00027397,2]
[354932232,1740831035486,-500.0,0.00027397,2]
[354932234,1740831035495,-760.15,0.00027397,2]
[354932236,1740831035505,-500.0,0.00027397,2]
[354932238,1740831035515,-500.0,0.00027397,2]
[354932240,1740831035525,-500.0,0.00027397,2]
[354932242,1740831035535,-500.0,0.00027397,2]
[354932244,1740831035546,-500.0,0.00027397,2]
[354932246,1740831035556,-500.0,0.00027397,2]
[354932248,1740831035565,-500.0,0.00027397,2]
[354932251,1740831035576,-500.0,0.00027397,2]
[354932253,1740831035586,-290.61757042,0.00027397,2]
[354932254,1740831035595,-500.0,0.00027397,2]
[354932256,1740831035605,-500.0,0.00027397,2]
[354932259,1740831035615,-500.0,0.00027397,2]
[354932260,1740831035625,-516.07493194,0.00027397,2]
[354932263,1740831035635,-500.0,0.00027397,2]
[354932265,1740831035646,-500.0,0.00027397,2]
[354932267,1740831035657,-500.0,0.00027397,2]
[354932269,1740831035667,-500.0,0.00027397,2]
[354932271,1740831035677,-500.0,0.00027397,2]
[354932273,1740831035688,-500.0,0.00027397,2]
[354932275,1740831035698,-152.19960952,0.00027397,2]
[354932277,1740831035708,-500.0,0.00027397,2]
[354932279,1740831035717,-1409.16,0.00027397,2]
[354932281,1740831035727,-500.0,0.00027397,2]
[354932282,1740831035736,-172.54548564,0.00027397,2]
[354932284,1740831035746,-500.0,0.00027397,2]
[354932286,1740831035756,-500.0,0.00027397,2]
[354932288,1740831035766,-500.0,0.00027397,2]
[354932290,1740831035775,-500.0,0.00027397,2]
[354932292,1740831035785,-1359.11,0.00027397,2]
[354932294,1740831035795,-506.97051639,0.00027397,2]
[354932296,1740831035805,-500.0,0.00027397,2]
[354932298,1740831035814,-812.6,0.00027397,2]
[354932300,1740831035823,-506.71391904,0.00027397,2]
[354932302,1740831035833,-500.0,0.00027397,2]
[354932304,1740831035843,-500.0,0.00027397,2]
[354932306,1740831035853,-500.0,0.00027397,2]
[354932308,1740831035862,-504.37459208,0.00027397,2]
[354932310,1740831035872,-500.0,0.00027397,2]
[354932312,1740831035882,-500.0,0.00027397,2]
[354932314,1740831035891,-500.0,0.00027397,2]
[354932316,1740831035901,-516.55,0.00027397,2]
[354932318,1740831035910,-500.0,0.00027397,2]
[354932319,1740831035920,-500.0,0.00027397,2]
[354932321,1740831035929,-500.0,0.00027397,2]
[354932323,1740831035939,-500.0,0.00027397,2]
[354932325,1740831035948,-500.0,0.00027397,2]
[354932327,1740831035958,-500.0,0.00027397,2]
[354932329,1740831035968,-500.0,0.00027397,2]
[354932331,1740831035978,-500.0,0.00027397,2]
[354932333,1740831035988,-1009.3,0.00027397,2]
[354932335,1740831035997,-500.0,0.00027397,2]
[354932337,1740831036008,-500.0,0.00027397,2]
[354932339,1740831036018,-500.0,0.00027397,2]
[354932341,1740831036028,-987.87,0.00027397,2]
[354932343,1740831036037,-511.29966959,0.00027397,2]
[354932345,1740831036047,-500.0,0.00027397,2]
[354932347,1740831036056,-508.10494649,0.00027397,2]
[354932349,1740831036066,-500.0,0.00027397,2]
[354932351,1740831036076,-500.0,0.00027397,2]
[354932352,1740831036087,-500.0,0.00027397,2]
[354932353,1740831036105,-500.0,0.00027397,2]
[354932354,1740831036118,-500.0,0.00027397,2]
[354932355,1740831036127,-500.0,0.00027397,2]
[354932356,1740831036137,-500.0,0.00027397,2]
[354932357,1740831036147,-557.86,0.00027397,2]
[354932358,1740831036159,-500.0,0.00027397,2]
[354932359,1740831036169,-500.0,0.00027397,2]
[354932360,1740831036179,-500.0,0.00027397,2]
[354932361,1740831036189,-500.0,0.00027397,2]
[354932362,1740831036198,-500.0,0.00027397,2]
[354932363,1740831036208,-1338.74,0.00027397,2]
[354932364,1740831036218,-500.0,0.00027397,2]
[354932365,1740831036227,-500.0,0.00027397,2]
[354932366,1740831036241,-500.0,0.00027397,2]
[354932367,1740831036251,-792.87,0.00027397,2]
[354932368,1740831036261,-361.17476808,0.00027397,2]
[354932369,1740831036271,-500.0,0.00027397,2]
[354932370,1740831036281,-500.0,0.00027397,2]
[354932371,1740831036291,-632.18,0.00027397,2]
[354932372,1740831036301,-500.0,0.00027397,2]
[354932373,1740831036312,-500.0,0.00027397,2]
[354932374,1740831036323,-1252.37,0.00027397,2]
[354932375,1740831036333,-508.12135045,0.00027397,2]
[354932376,1740831036346,-500.0,0.00027397,2]
[354932377,1740831036359,-500.0,0.00027397,2]
[354932378,1740831036368,-500.0,0.00027397,2]
[354932379,1740831036378,-500.0,0.00027397,2]
[354932380,1740831036388,-500.0,0.00027397,2]
[354932381,1740831036398,-500.0,0.00027397,2]
[354932382,1740831036408,-500.0,0.00027397,2]
[354932383,1740831036418,-500.0,0.00027397,2]
[354932384,1740831036427,-500.0,0.00027397,2]
[354932385,1740831036437,-153.475776,0.00027397,7]
[354932386,1740831036447,-500.0,0.00027397,2]
[354932387,1740831036457,-500.0,0.00027397,2]
[354932388,1740831036467,-500.0,0.00027397,2]
[354932389,1740831036476,-503.02945184,0.00027397,2]
[354932390,1740831036486,-500.0,0.00027397,2]
[354932391,1740831036496,-500.0,0.00027397,2]
[354932392,1740831036506,-1251.05,0.00027397,2]
[354932393,1740831036515,-500.0,0.00027397,2]
[354932394,1740831036524,-875.93,0.00027397,2]
[354932395,1740831036534,-500.0,0.00027397,2]
[354932396,1740831036543,-500.0,0.00027397,2]
[354932397,1740831036554,-500.0,0.00027397,2]
[354932398,1740831036564,-500.0,0.00027397,2]
[354932399,1740831036573,-500.0,0.00027397,2]